bitfinex-derivatives/quotes_ETHF0:USTF0_20230903
["timestamp","ask_amount","ask_price","bid_price","bid_amount"]
[1693723238878,16.14937963,1639.3,1639.2,9.04040889]
[1693723241180,14.66071,1639.3,1639.2,9.04040889]
[1693723241487,16.14937963,1639.3,1639.2,9.04040889]
[1693723242085,10.64037963,1639.3,1639.2,9.04040889]
[1693723242689,9.15171,1639.3,1639.2,9.04040889]
[1693723246491,10.64037963,1639.3,1639.2,9.04040889]
[1693723246689,9.15171,1639.3,1639.2,9.04040889]
[1693723249791,10.64037963,1639.3,1639.2,9.04040889]
[1693723249985,9.15171,1639.3,1639.2,9.04040889]
[1693723250491,10.64037963,1639.3,1639.2,9.04040889]
[1693723250692,9.15171,1639.3,1639.2,9.04040889]
[1693723251592,10.64037963,1639.3,1639.2,9.04040889]
[1693723252495,10.64037963,1639.3,1639.2,6.17324537]
[1693723253398,10.70137963,1639.3,1639.2,5.95307367]
[1693723254303,10.70137963,1639.3,1639.2,8.82482302]
[1693723254603,10.70137963,1639.3,1639.2,5.9576595]
[1693723257508,10.70137963,1639.3,1639.2,8.82482302]
[1693723257707,10.70137963,1639.3,1639.2,5.9576595]
[1693723258406,10.70137963,1639.3,1639.2,8.88582302]
[1693723258606,10.70137963,1639.3,1639.2,6.0186595]
[1693723260610,10.70137963,1639.3,1639.2,8.88582302]
[1693723260909,10.70137963,1639.3,1639.2,6.0186595]
[1693723261510,10.70137963,1639.3,1639.2,8.88582302]
[1693723261808,10.70137963,1639.3,1639.2,6.0186595]
[1693723262310,10.70137963,1639.3,1639.2,8.88582302]
[1693723263105,9.21271,1639.3,1639.2,8.88582302]
[1693723263911,10.70137963,1639.3,1639.2,8.88582302]
[1693723264611,9.21271,1639.3,1639.2,8.88582302]
[1693723266314,10.70137963,1639.3,1639.2,8.88582302]
[1693723266917,9.21271,1639.3,1639.2,8.88582302]
[1693723267117,10.70137963,1639.3,1639.2,8.88582302]
[1693723269321,10.70137963,1639.3,1639.2,6.0186595]
[1693723270923,10.70137963,1639.3,1639.2,8.88582302]
[1693723271821,10.70137963,1639.3,1639.2,0.0104864]
[1693723272018,19.26095963,1639.3,1639.2,0.0104864]
[1693723278529,19.26095963,1639.3,1638.9,3.11221]
[1693723278530,0.061,1639.1,1638.9,3.11221]
[1693723278728,10.70305963,1639.0,1638.9,6.16347]
[1693723278930,13.30295963,1639.0,1638.9,6.16347]
[1693723279128,13.30295963,1639.0,1638.9,3.11232]
[1693723279129,15.77665963,1639.0,1638.9,3.11232]
[1693723279333,21.28565963,1639.0,1638.9,3.12220242]
[1693723279939,21.28565963,1639.0,1638.9,0.07088242]
[1693723280331,24.33678963,1639.0,1638.9,3.12220242]
[1693723281133,24.33678963,1639.0,1638.9,0.00988242]
[1693723281538,0.061,1638.8,1638.7,6.10327]
[1693723281838,10.70419963,1638.8,1638.7,6.10327]
[1693723282226,15.85469963,1638.8,1638.7,6.11224528]
[1693723283631,24.41520963,1638.8,1638.7,0.00897528]
[1693723285739,0.061,1638.6,1638.4,6.16534]
[1693723286040,16.15378963,1638.5,1638.4,6.16535]
[1693723286234,18.70088963,1638.5,1638.4,3.11313]
[1693723286435,21.19738963,1638.5,1638.4,3.11313]
[1693723288944,21.19738963,1638.5,1638.4,6.16535]
[1693723299036,11.61298,1638.6,1638.5,0.061]
[1693723299231,16.15368963,1638.6,1638.5,6.16508]
[1693723302246,16.15368963,1638.6,1638.5,6.17231644]
[1693723303236,15.23789759,1638.6,1638.5,6.17231644]
[1693723305152,15.23789759,1638.6,1638.5,3.12027644]
[1693723306554,15.23789759,1638.6,1638.5,6.17231644]
[1693723306851,13.74922796,1638.6,1638.5,9.03947996]
[1693723307050,13.74922796,1638.6,1638.5,10.63101743]
[1693723308149,15.23789759,1638.6,1638.5,10.63101743]
[1693723309152,15.23789759,1638.6,1638.5,7.76385391]
[1693723309955,15.23789759,1638.6,1638.5,10.63101743]
[1693723310446,15.23789759,1638.6,1638.5,7.76385391]
[1693723310855,15.23789759,1638.6,1638.5,6.17231644]
[1693723311144,15.23789759,1638.6,1638.5,7.76385391]
[1693723311752,15.23789759,1638.6,1638.5,10.63101743]
[1693723312142,15.23789759,1638.6,1638.5,7.76385391]
[1693723320258,15.23789759,1638.6,1638.5,10.81641935]
[1693723321952,9.72889759,1638.6,1638.5,7.76385391]
[1693723322154,9.72889759,1638.6,1638.5,10.81644492]
[1693723323256,9.72889759,1638.6,1638.5,13.20375112]
[1693723323653,12.30349759,1638.6,1638.5,13.20375112]
[1693723325061,12.30349759,1638.6,1638.5,10.81644492]
[1693723328259,12.30349759,1638.6,1638.5,7.76385391]
[1693723329957,12.30349759,1638.6,1638.5,3.05927644]
[1693723330355,20.86453759,1638.6,1638.5,0.00723644]
[1693723330557,20.86453759,1638.6,1638.5,3.05928644]
[1693723331562,17.81249759,1638.6,1638.5,6.11133644]
[1693723333861,18.91249759,1638.6,1638.5,6.11133644]
[1693723338665,14.37178796,1638.6,1638.5,12.03054996]
[1693723339770,15.86045759,1638.6,1638.5,12.03054996]
[1693723339970,15.86045759,1638.6,1638.5,9.16338644]
[1693723340568,15.86045759,1638.6,1638.5,12.03054996]
[1693723340966,15.86045759,1638.6,1638.5,9.16338644]
[1693723343670,15.86045759,1638.6,1638.5,12.03054996]
[1693723344366,15.86045759,1638.6,1638.5,9.16338644]
[1693723345775,18.91246759,1638.6,1638.5,9.16338644]
[1693723349271,14.37177796,1638.6,1638.5,12.03054996]
[1693723349468,17.42378796,1638.6,1638.5,12.03054996]
[1693723349779,18.91245759,1638.6,1638.5,12.03054996]
[1693723350172,18.91245759,1638.6,1638.5,12.09154996]
[1693723350674,17.42378796,1638.6,1638.5,12.09154996]
[1693723351968,18.91245759,1638.6,1638.5,12.09154996]
[1693723354972,17.42378796,1638.6,1638.5,12.09154996]
[1693723355378,14.37177796,1638.6,1638.5,12.09154996]
[1693723358584,15.86044759,1638.6,1638.5,12.09154996]
[1693723358882,13.28584759,1638.6,1638.5,12.09154996]
[1693723359881,11.79717796,1638.6,1638.5,12.09154996]
[1693723360081,13.28584759,1638.6,1638.5,12.09154996]
[1693723360986,11.79717796,1638.6,1638.5,12.09154996]
[1693723361283,13.28584759,1638.6,1638.5,12.09154996]
[1693723361679,16.33770759,1638.6,1638.5,12.09154996]
[1693723361883,16.33770759,1638.6,1638.5,9.22438644]
[1693723365186,13.28569759,1638.6,1638.5,9.22438644]
[1693723365987,13.28569759,1638.6,1638.5,12.09154996]
[1693723366183,11.79702796,1638.6,1638.5,12.09154996]
[1693723366587,13.28569759,1638.6,1638.5,12.09154996]
[1693723368289,13.28569759,1638.6,1638.5,9.22438644]
[1693723369289,16.33755759,1638.6,1638.5,9.22438644]
[1693723372686,11.79702796,1638.6,1638.5,12.09154996]
[1693723372895,6.609,1638.6,1638.5,15.14359996]
[1693723373295,12.71274,1638.6,1638.5,15.14359996]
[1693723373999,12.71274,1638.6,1638.5,12.09154996]
[1693723377898,15.76461,1638.6,1638.5,12.09154996]
[1693723380505,17.25327963,1638.6,1638.5,12.09154996]
[1693723381502,15.76461,1638.6,1638.5,12.09154996]
[1693723381902,17.25327963,1638.6,1638.5,12.09154996]
[1693723382102,15.76461,1638.6,1638.5,12.09154996]
[1693723383102,6.609,1638.6,1638.5,12.09154996]
[1693723383402,1.0706559,1638.6,1638.5,20.65259996]
[1693723393404,2.55932553,1638.6,1638.5,20.65259996]
[1693723395307,1.0706559,1638.6,1638.5,20.65259996]
[1693723395507,1.0706559,1638.6,1638.5,21.13025562]
[1693723407226,0.4603559,1638.6,1638.5,21.13025562]
[1693723418131,8.05272553,1638.6,1638.5,12.6930921]
[1693723418534,8.05272553,1638.6,1638.5,9.6410421]
[1693723419642,8.05272553,1638.6,1638.5,6.11133644]
[1693723419643,16.61357553,1638.6,1638.5,6.11133644]
[1693723422439,16.61357553,1638.6,1638.5,9.16338644]
[1693723423941,13.56172553,1638.6,1638.5,9.16338644]
[1693723426232,16.61357553,1638.6,1638.5,9.16338644]
[1693723439347,16.61357553,1638.6,1638.5,6.11133644]
[1693723439848,15.1249059,1638.6,1638.5,12.03054996]
[1693723440343,12.0730559,1638.6,1638.5,12.03054996]
[1693723441043,13.56172553,1638.6,1638.5,12.03054996]
[1693723441557,12.0730559,1638.6,1638.5,12.03054996]
[1693723443753,13.56172553,1638.6,1638.5,12.03054996]
[1693723445355,12.0730559,1638.6,1638.5,12.03054996]
[1693723445655,13.56172553,1638.6,1638.5,12.03054996]
[1693723445856,13.56172553,1638.6,1638.5,12.09154996]
[1693723446266,13.56172553,1638.6,1638.5,9.22438644]
[1693723446453,13.56172553,1638.6,1638.5,12.09154996]
[1693723447756,12.0730559,1638.6,1638.5,12.09154996]
[1693723447957,13.56172553,1638.6,1638.5,12.09154996]
[1693723449057,13.56172553,1638.6,1638.5,9.22438644]
[1693723449751,16.61357553,1638.6,1638.5,9.22438644]
[1693723453860,16.61357553,1638.6,1638.5,12.09154996]
[1693723454558,16.61357553,1638.6,1638.5,9.22438644]
[1693723454951,16.61357553,1638.6,1638.5,12.09154996]
[1693723455356,16.61357553,1638.6,1638.5,9.22438644]
[1693723460663,16.61357553,1638.6,1638.5,12.09154996]
[1693723460869,15.1249059,1638.6,1638.5,12.09154996]
[1693723461167,16.61357553,1638.6,1638.5,12.09154996]
[1693723462872,15.1249059,1638.6,1638.5,12.09154996]
[1693723463165,16.61357553,1638.6,1638.5,9.22438644]
[1693723463370,16.61357553,1638.6,1638.5,12.09154996]
[1693723463971,13.56172553,1638.6,1638.5,12.09154996]
[1693723464977,12.0730559,1638.6,1638.5,12.09154996]
[1693723465178,13.56172553,1638.6,1638.5,12.09154996]
[1693723467077,12.0730559,1638.6,1638.5,12.09154996]
[1693723470286,13.56172553,1638.6,1638.5,12.09154996]
[1693723470486,12.0730559,1638.6,1638.5,12.09154996]
[1693723472685,13.56172553,1638.6,1638.5,12.09154996]
[1693723474486,12.0730559,1638.6,1638.5,12.09154996]
[1693723475387,13.56172553,1638.6,1638.5,12.09154996]
[1693723476088,12.0730559,1638.6,1638.5,12.09154996]
[1693723476288,13.56172553,1638.6,1638.5,12.09154996]
[1693723477089,12.0730559,1638.6,1638.5,12.09154996]
[1693723477290,13.56172553,1638.6,1638.5,12.09154996]
[1693723479188,13.56172553,1638.6,1638.5,9.22438644]
[1693723479893,13.56172553,1638.6,1638.5,12.09154996]
[1693723482190,12.0730559,1638.6,1638.5,12.08431352]
[1693723482393,13.56172553,1638.6,1638.5,9.2243944]
[1693723482600,12.0730559,1638.6,1638.5,12.09155792]
[1693723483587,13.56172553,1638.6,1638.5,12.09155792]
[1693723483991,12.0730659,1638.6,1638.5,12.09155792]
[1693723484187,9.0212059,1638.6,1638.5,12.09155792]
[1693723484998,12.0730659,1638.6,1638.5,12.09155792]
[1693723485496,13.56173553,1638.6,1638.5,12.09155792]
[1693723489291,12.0730659,1638.6,1638.5,12.09155792]
[1693723492006,13.56173553,1638.6,1638.5,12.09155792]
[1693723492705,13.56173553,1638.6,1638.5,9.2243944]
[1693723493006,13.56173553,1638.6,1638.5,12.09155792]
[1693723493205,12.0730659,1638.6,1638.5,12.09155792]
[1693723500811,13.56173553,1638.6,1638.5,12.09155792]
[1693723501814,16.61362553,1638.6,1638.5,12.09155792]
[1693723502610,15.1249559,1638.6,1638.5,12.09155792]
[1693723503010,16.61362553,1638.6,1638.5,12.09155792]
[1693723503211,15.1249559,1638.6,1638.5,12.09155792]
[1693723503412,16.61362553,1638.6,1638.5,12.09155792]
[1693723503717,15.1249559,1638.6,1638.5,12.09155792]
[1693723504117,16.61362553,1638.6,1638.5,12.09155792]
[1693723504815,15.1249559,1638.6,1638.5,12.09155792]
[1693723505017,16.61362553,1638.6,1638.5,12.09155792]
[1693723505918,15.1249559,1638.6,1638.5,12.09155792]
[1693723506719,16.61362553,1638.6,1638.5,12.09155792]
[1693723507622,16.61362553,1638.6,1638.5,9.2243944]
[1693723507917,15.1249559,1638.6,1638.5,12.09155792]
[1693723509121,16.61362553,1638.6,1638.5,12.09155792]
[1693723510926,15.1249559,1638.6,1638.5,12.09155792]
[1693723511625,16.61362553,1638.6,1638.5,12.09155792]
[1693723512930,15.1249559,1638.6,1638.5,12.09155792]
[1693723513122,16.61362553,1638.6,1638.5,12.09155792]
[1693723514031,15.1249559,1638.6,1638.5,12.09155792]
[1693723514332,16.61362553,1638.6,1638.5,12.09155792]
[1693723515034,15.1249559,1638.6,1638.5,12.09155792]
[1693723515431,16.61362553,1638.6,1638.5,12.09155792]
[1693723515931,15.1249559,1638.6,1638.5,12.09155792]
[1693723516133,16.61362553,1638.6,1638.5,12.09155792]
[1693723517325,16.61362553,1638.6,1638.5,9.2243944]
[1693723519627,16.61362553,1638.6,1638.5,12.09155792]
[1693723520028,15.1249559,1638.6,1638.5,12.09155792]
[1693723520225,16.61362553,1638.6,1638.5,9.2243944]
[1693723520433,16.61362553,1638.6,1638.5,12.09155792]
[1693723522129,15.1249559,1638.6,1638.5,12.09155792]
[1693723522333,16.61362553,1638.6,1638.5,9.2243944]
[1693723522836,16.61362553,1638.6,1638.5,12.09155792]
[1693723523030,15.1249559,1638.6,1638.5,12.09155792]
[1693723523430,16.61362553,1638.6,1638.5,12.09155792]
[1693723523634,15.1249559,1638.6,1638.5,12.09155792]
[1693723525937,16.61362553,1638.6,1638.5,12.09155792]
[1693723526242,15.1249559,1638.6,1638.5,12.09155792]
[1693723526838,16.61362553,1638.6,1638.5,12.09155792]
[1693723527237,15.1249559,1638.6,1638.5,12.09155792]
[1693723527539,16.61362553,1638.6,1638.5,12.09155792]
[1693723528239,15.1249559,1638.6,1638.5,12.09155792]
[1693723528439,16.61362553,1638.6,1638.5,12.09155792]
[1693723529238,15.1249559,1638.6,1638.5,12.09155792]
[1693723529440,16.61362553,1638.6,1638.5,12.09155792]
[1693723529634,15.1249559,1638.6,1638.5,12.09155792]
[1693723530642,16.61362553,1638.6,1638.5,12.09155792]
[1693723531344,15.1249559,1638.6,1638.5,12.09155792]
[1693723531538,16.61362553,1638.6,1638.5,3.0592944]
[1693723531938,19.66554553,1638.6,1638.5,0.0072444]
[1693723532234,19.66554553,1638.6,1638.5,3.0593444]
[1693723532443,19.66554553,1638.6,1638.5,3.06343092]
[1693723533241,16.61362553,1638.6,1638.5,6.11553092]
[1693723543654,16.61362553,1638.6,1638.5,8.98269444]
[1693723543849,16.61362553,1638.6,1638.5,6.11553092]
[1693723554964,16.61362553,1638.6,1638.5,8.98269444]
[1693723556965,16.61362553,1638.6,1638.5,6.11553092]
[1693723557763,16.61362553,1638.6,1638.5,8.98269444]
[1693723557960,16.61362553,1638.6,1638.5,9.04369444]
[1693723561468,16.61362553,1638.6,1638.5,6.17653092]
[1693723561670,16.61362553,1638.6,1638.5,9.04369444]
[1693723565268,16.61362553,1638.6,1638.5,12.09579444]
[1693723565656,16.61362553,1638.6,1638.5,9.22863092]
[1693723566073,16.61362553,1638.6,1638.5,6.17653092]
[1693723566278,16.61362553,1638.6,1638.5,3.12443092]
[1693723569088,17.10104675,1638.6,1638.5,3.12443092]
[1693723569787,17.10104675,1638.6,1638.5,6.17649092]
[1693723574490,17.10104675,1638.6,1638.5,9.04365444]
[1693723574795,15.61237712,1638.6,1638.5,9.04365444]
[1693723575085,17.10104675,1638.6,1638.5,9.04365444]
[1693723575993,17.10104675,1638.6,1638.5,6.17649092]
[1693723576899,17.10104675,1638.6,1638.5,9.04365444]
[1693723582191,15.61237712,1638.6,1638.5,9.04365444]
[1693723582900,17.10104675,1638.6,1638.5,9.04365444]
[1693723583291,17.10104675,1638.6,1638.5,6.17649092]
[1693723588304,17.10104675,1638.6,1638.5,3.12439092]
[1693723590206,20.15296675,1638.6,1638.5,0.07233092]
[1693723598610,0.061,1638.4,1638.1,6.16651]
[1693723598807,5.509,1638.2,1638.1,3.11384]
[1693723599003,14.66701,1638.2,1638.1,0.061]
[1693723599313,14.66701,1638.2,1638.1,0.0715034]
[1693723600717,20.3353,1638.2,1638.1,0.0105034]
[1693723609519,17.7197,1638.2,1638.1,0.0105034]
[1693723610824,18.21525965,1638.2,1638.1,0.0105034]
[1693723614732,0.061,1637.9,1637.7,3.11462]
[1693723615029,14.66932,1637.8,1637.7,5.72589]
[1693723615222,18.71448963,1637.8,1637.7,5.72593]
[1693723615422,18.71448963,1637.8,1637.7,5.73605705]
[1693723620828,18.71448963,1637.8,1637.7,2.68242705]
[1693723624236,18.71448963,1637.8,1637.7,5.73605705]
[1693723627730,18.71448963,1637.8,1637.7,2.68242705]
[1693723630538,18.71448963,1637.8,1637.7,0.07112705]
[1693723635743,18.71448963,1637.8,1637.7,1.67063852]
[1693723639638,18.71448963,1637.8,1637.7,4.72426852]
[1693723639938,14.17238,1637.8,1637.7,13.69869204]
[1693723640132,4.59279841,1637.8,1637.7,19.15203532]
[1693723640343,4.59279841,1637.8,1637.7,17.55252385]
[1693723641042,7.64623841,1637.8,1637.7,17.55252385]
[1693723641444,10.69967841,1637.8,1637.7,17.55252385]
[1693723644145,13.75311841,1637.8,1637.7,17.55252385]
[1693723645447,4.59279841,1637.8,1637.7,8.39163385]
[1693723647235,4.59279841,1637.8,1637.7,9.98935738]
[1693723647437,6.08146804,1637.8,1637.7,4.72292665]
[1693723647842,8.60106804,1637.8,1637.7,1.66885058]
[1693723649353,8.60106804,1637.8,1637.7,0.07112705]
[1693723657049,8.60106804,1637.8,1637.7,0.01012705]
[1693723657552,8.60106804,1637.8,1637.6,2.501]
[1693723658453,8.60106804,1637.8,1637.7,0.01013111]
[1693723659352,8.60106804,1637.8,1637.5,2.96954]
[1693723659546,5.509,1637.6,1637.5,2.96954]
[1693723659747,5.509,1637.6,1637.5,5.83670352]
[1693723661252,6.99766963,1637.6,1637.5,5.83670352]
[1693723661454,6.99766963,1637.6,1637.5,5.84685115]
[1693723661953,4.06846963,1637.6,1637.5,5.84685115]
[1693723662350,2.5798,1637.6,1637.5,5.84685115]
[1693723667359,4.06846963,1637.6,1637.5,5.84685115]
[1693723667956,2.5798,1637.6,1637.5,5.84685115]
[1693723674461,4.06846963,1637.6,1637.5,5.84685115]
[1693723675764,4.06846963,1637.6,1637.5,15.00870115]
[1693723676166,4.06846963,1637.6,1637.5,18.06268115]
[1693723677365,2.5798,1637.6,1637.5,18.06268115]
[1693723680472,5.509,1637.7,1637.5,18.06268115]
[1693723680669,5.509,1637.7,1637.6,2.33103648]
[1693723680870,5.509,1637.7,1637.6,14.54631648]
[1693723681475,5.509,1637.7,1637.6,14.55645856]
[1693723681976,17.25264,1637.8,1637.7,0.0611]
[1693723682282,17.25264,1637.8,1637.7,12.08915352]
[1693723686077,17.25264,1637.8,1637.7,9.03552352]
[1693723691478,17.25264,1637.8,1637.7,9.04565733]
[1693723695887,18.74130963,1637.8,1637.7,9.04565733]
[1693723696287,17.25264,1637.8,1637.7,9.04565733]
[1693723697887,18.74130963,1637.8,1637.7,9.04565733]
[1693723699887,17.25264,1637.8,1637.7,9.04565733]
[1693723708090,14.66954,1637.8,1637.7,9.04565733]
[1693723708496,19.76364,1637.8,1637.7,9.04565733]
[1693723711898,14.25464,1637.8,1637.7,9.04565733]
[1693723718400,11.20108,1637.8,1637.7,9.04565733]
[1693723720196,14.25464,1637.8,1637.7,9.04565733]
[1693723735511,11.20108,1637.8,1637.7,12.09928733]
[1693723750220,14.25464,1637.8,1637.7,12.09928733]
[1693723750521,15.74330963,1637.8,1637.7,12.09928733]
[1693723752517,14.25464,1637.8,1637.7,12.09928733]
[1693723753123,14.25464,1637.8,1637.7,9.04565733]
[1693723763628,14.25464,1637.8,1637.7,0.01013381]
[1693723763629,15.74330963,1637.8,1637.7,0.01013381]
[1693723763933,24.30586963,1637.8,1637.7,0.01013381]
[1693723764421,24.30586963,1637.8,1637.6,3.05381]
[1693723764627,24.30586963,1637.8,1637.6,6.10759]
[1693723765332,24.30586963,1637.8,1637.7,0.01013381]
[1693723766434,24.30586963,1637.8,1637.6,6.10759]
[1693723767334,24.30586963,1637.8,1637.7,0.01013246]
[1693723768432,24.30586963,1637.8,1637.6,6.10759]
[1693723771231,24.30586963,1637.8,1637.6,3.05378]
[1693723771441,24.30586963,1637.8,1637.6,6.1076]
[1693723771943,5.509,1637.7,1637.6,6.1076]
[1693723772144,14.66989,1637.7,1637.6,6.1076]
[1693723775052,14.66989,1637.7,1637.6,8.97476352]
[1693723775239,14.66989,1637.7,1637.6,9.16142]
[1693723775640,14.66989,1637.7,1637.6,12.02858352]
[1693723776152,11.61626,1637.7,1637.6,12.02858352]
[1693723781464,11.61626,1637.7,1637.6,12.03872424]
[1693723782955,5.509,1637.7,1637.6,12.03872424]
[1693723791870,17.24498,1637.8,1637.6,17.54772424]
[1693723792668,18.73364963,1637.8,1637.6,17.54772424]
[1693723793466,17.24498,1637.8,1637.6,17.54772424]
[1693723796271,18.73364963,1637.8,1637.6,17.54772424]
[1693723800274,15.68006963,1637.8,1637.6,17.54772424]
[1693723800672,18.73364963,1637.8,1637.6,17.54772424]
[1693723803375,15.68006963,1637.8,1637.6,17.54772424]
[1693723804174,18.73357963,1637.8,1637.6,17.54772424]
[1693723806370,18.73357963,1637.8,1637.6,14.68056072]
[1693723806573,21.78708963,1637.8,1637.6,11.62674072]
[1693723806766,21.78708963,1637.8,1637.6,3.06392072]
[1693723807274,5.509,1637.7,1637.6,3.06392072]
[1693723807476,14.66989,1637.7,1637.6,3.06392072]
[1693723807768,17.21339,1637.7,1637.6,3.06392072]
[1693723807971,20.26702,1637.7,1637.4,6.10824]
[1693723808173,9.16257,1637.4,1637.2,9.16339]
[1693723808369,5.509,1637.3,1637.2,9.16339]
[1693723808575,16.16080963,1637.3,1637.2,6.10889]
[1693723809071,16.16080963,1637.3,1637.2,3.05444]
[1693723810072,16.16080963,1637.3,1637.1,9.22509]
[1693723810381,16.16080963,1637.3,1637.1,6.17041]
[1693723810976,16.16080963,1637.3,1637.1,9.22514]
[1693723811176,2.6246,1637.2,1637.1,9.22514]
[1693723811379,8.73368,1637.2,1637.1,9.22514]
[1693723811575,11.14958,1637.2,1637.1,9.71136159]
[1693723811879,22.76766,1637.2,1637.1,0.48622159]
[1693723812068,22.76766,1637.2,1637.0,6.10967]
[1693723812374,22.76766,1637.2,1637.0,3.05478]
[1693723812375,6.99766963,1637.1,1637.0,3.05478]
[1693723812581,16.16185963,1637.1,1637.0,6.10969]
[1693723814679,16.16185963,1637.1,1637.0,9.1646]
[1693723814976,16.16185963,1637.1,1637.0,6.10969]
[1693723815184,16.16185963,1637.1,1637.0,6.60149527]
[1693723815578,16.16185963,1637.1,1637.0,9.65640527]
[1693723815879,16.16185963,1637.1,1637.0,6.60149527]
[1693723816476,16.16185963,1637.1,1637.0,6.61014703]
[1693723817183,16.16185963,1637.1,1637.0,9.66505703]
[1693723818583,13.10712963,1637.1,1637.0,9.66505703]
[1693723819581,13.10712963,1637.1,1637.0,9.17325176]
[1693723821079,13.10712963,1637.1,1637.0,12.04041528]
[1693723821274,13.10712963,1637.1,1637.0,6.11834176]
[1693723822186,13.10712963,1637.1,1637.0,9.17325176]
[1693723822484,13.10712963,1637.1,1637.0,6.11834176]
[1693723822678,13.10712963,1637.1,1637.0,9.17325176]
[1693723822878,13.10712963,1637.1,1637.0,6.11834176]
[1693723824285,16.16185963,1637.1,1637.0,6.11834176]
[1693723832388,16.16185963,1637.1,1637.0,6.12144348]
[1693723839404,16.16185963,1637.1,1637.0,7.72313853]
[1693723841104,16.16185963,1637.1,1637.0,10.59030205]
[1693723841403,16.16185963,1637.1,1637.0,7.72313853]
[1693723841604,16.16185963,1637.1,1637.0,3.06653348]
[1693723842005,16.16185963,1637.1,1637.0,6.12144348]
[1693723842601,16.16185963,1637.1,1637.0,7.72313853]
[1693723844602,16.16185963,1637.1,1637.0,6.12144348]
[1693723845811,16.16185963,1637.1,1637.0,7.72313853]
[1693723846303,16.16185963,1637.1,1637.0,6.12144348]
[1693723848001,16.16185963,1637.1,1637.0,7.72313853]
[1693723848503,16.16185963,1637.1,1637.0,6.12144348]
[1693723849206,16.16185963,1637.1,1637.0,7.72313853]
[1693723850011,16.16185963,1637.1,1637.0,6.12144348]
[1693723850311,16.16185963,1637.1,1637.0,7.72313853]
[1693723852313,16.16185963,1637.1,1637.0,10.59030205]
[1693723853307,16.16185963,1637.1,1637.0,16.04824923]
[1693723853511,16.16185963,1637.1,1637.0,13.64570666]
[1693723853712,16.16185963,1637.1,1637.0,10.77854314]
[1693723854009,16.16185963,1637.1,1637.0,6.12144348]
[1693723854606,16.16185963,1637.1,1637.0,3.06653348]
[1693723855702,16.66276413,1637.1,1637.0,3.06653348]
[1693723856906,16.66276413,1637.1,1637.0,0.01175348]
[1693723857107,19.71749413,1637.1,1637.0,0.01175348]
[1693723857912,19.71749413,1637.1,1637.0,3.06669348]
[1693723859312,19.71749413,1637.1,1637.0,0.01175348]
[1693723861412,25.82749413,1637.1,1636.7,1.60229114]
[1693723861615,25.82749413,1637.1,1636.4,4.00572786]
[1693723861616,5.509,1636.8,1636.4,4.00572786]
[1693723861809,45.82688,1636.9,1636.5,8.44262648]
[1693723861810,15.2756,1636.9,1636.5,8.44262648]
[1693723862009,14.67604,1636.6,1636.5,8.44262648]
[1693723862208,14.67604,1636.6,1636.5,11.30979]
[1693723862405,14.67604,1636.6,1636.5,11.31813308]
[1693723863214,16.16470963,1636.6,1636.5,11.31813308]
[1693723863614,16.16470963,1636.6,1636.5,9.0481966]
[1693723863813,16.16470963,1636.6,1636.5,6.18103308]
[1693723864014,14.67604,1636.6,1636.5,6.18103308]
[1693723864415,14.67604,1636.6,1636.5,9.0481966]
[1693723864612,16.16470963,1636.6,1636.5,9.0481966]
[1693723867417,16.16470963,1636.6,1636.5,6.18103308]
[1693723869214,16.16470963,1636.6,1636.5,0.06944308]
[1693723870415,16.16470963,1636.6,1636.5,6.18118308]
[1693723870619,14.67604,1636.6,1636.5,9.0483466]
[1693723870919,16.16470963,1636.6,1636.5,9.0483466]
[1693723871419,16.16470963,1636.6,1636.5,6.18118308]
[1693723871620,16.16470963,1636.6,1636.5,9.0483466]
[1693723874116,16.16470963,1636.6,1636.5,6.18118308]
[1693723877524,16.16470963,1636.6,1636.5,9.0483466]
[1693723877825,16.16470963,1636.6,1636.5,6.18118308]
[1693723880530,16.16470963,1636.6,1636.5,9.0483466]
[1693723880929,16.16470963,1636.6,1636.5,6.18118308]
[1693723881531,18.78680963,1636.6,1636.5,6.18118308]
[1693723882327,18.78680963,1636.6,1636.5,6.12008308]
[1693723882533,21.84248963,1636.6,1636.5,0.00834308]
[1693723883531,21.84248963,1636.6,1636.3,6.17353]
[1693723883731,5.509,1636.4,1636.3,3.1173]
[1693723884030,16.16584963,1636.4,1636.3,5.98446352]
[1693723884229,18.56694963,1636.4,1636.3,5.98446352]
[1693723884431,17.07828,1636.4,1636.3,5.99263891]
[1693723884631,18.56694963,1636.4,1636.3,5.99263891]
[1693723885834,17.07828,1636.4,1636.3,5.99263891]
[1693723886026,11.62112,1636.4,1636.3,12.10513891]
[1693723887230,14.67718,1636.4,1636.3,12.10513891]
[1693723888131,16.16584963,1636.4,1636.3,12.10513891]
[1693723888936,14.67718,1636.4,1636.3,12.10513891]
[1693723889232,14.67718,1636.4,1636.3,9.04888891]
[1693723891438,16.16584963,1636.4,1636.3,7.78401653]
[1693723891638,14.67718,1636.4,1636.3,10.65118005]
[1693723892340,16.16584963,1636.4,1636.3,10.65118005]
[1693723892542,14.67718,1636.4,1636.3,10.65118005]
[1693723893532,5.19517525,1636.4,1636.3,13.70743005]
[1693723894233,5.19517525,1636.4,1636.3,16.76390549]
[1693723897438,8.25123525,1636.4,1636.3,16.76390549]
[1693723899343,8.25123525,1636.4,1636.3,19.16734221]
[1693723901342,8.25123525,1636.4,1636.3,24.67634221]
[1693723901841,8.25123525,1636.4,1636.3,19.16734221]
[1693723902441,8.25123525,1636.4,1636.3,16.76390549]
[1693723903243,8.25123525,1636.4,1636.3,19.16734221]
[1693723903835,9.73990488,1636.4,1636.3,19.16734221]
[1693723904235,8.25123525,1636.4,1636.3,19.16734221]
[1693723905241,8.25123525,1636.4,1636.3,17.56505107]
[1693723906331,8.25123525,1636.4,1636.3,19.16784354]
[1693723906535,9.73990488,1636.4,1636.3,19.16784354]
[1693723907337,9.73990488,1636.4,1636.3,16.76440682]
[1693723907942,8.25123525,1636.4,1636.3,16.76440682]
[1693723908340,8.25123525,1636.4,1636.3,13.70793138]
[1693723908543,9.73990488,1636.4,1636.3,13.70793138]
[1693723909039,8.25123525,1636.4,1636.3,13.70793138]
[1693723909439,9.73990488,1636.4,1636.3,13.70793138]
[1693723909839,8.25123525,1636.4,1636.3,13.70793138]
[1693723910343,9.73990488,1636.4,1636.3,12.10513891]
[1693723910543,9.73990488,1636.4,1636.3,9.23797539]
[1693723911747,9.73990488,1636.4,1636.3,12.10513891]
[1693723912147,9.73990488,1636.4,1636.3,6.18172539]
[1693723912537,12.36520488,1636.4,1636.3,6.18172539]
[1693723912747,12.36520488,1636.4,1636.3,9.04888891]
[1693723913645,15.42126488,1636.4,1636.3,0.00817539]
[1693723914043,15.42126488,1636.4,1636.3,3.06442539]
[1693723915049,12.36520488,1636.4,1636.3,3.06442539]
[1693723917350,12.36520488,1636.4,1636.3,6.12067539]
[1693723920951,12.36520488,1636.4,1636.3,8.98783891]
[1693723921953,17.87420488,1636.4,1636.3,8.98783891]
[1693723923043,17.87420488,1636.4,1636.3,6.12067539]
[1693723923552,17.87420488,1636.4,1636.3,8.98783891]